bitfinex-derivatives/quotes_SOLF0:USTF0_20240925
["timestamp","ask_amount","ask_price","bid_price","bid_amount"]
[1727249473946,101.29900294,149.63,149.57,8.22]
[1727249474239,8.22,149.62,149.57,8.22]
[1727249474639,3.3418,149.61,149.57,8.22]
[1727249474836,97.95760294,149.63,149.58,8.22]
[1727249475042,106.17760294,149.63,149.58,8.22]
[1727249475443,3.3417,149.62,149.58,8.22]
[1727249476339,11.5617,149.62,149.57,11.5626]
[1727249479549,3.3419,149.61,149.57,11.5626]
[1727249482050,3.3416,149.62,149.58,8.22]
[1727249482248,97.95760294,149.63,149.6,8.22]
[1727249482449,97.95760294,149.63,149.56,11.49109337]
[1727249482642,2.6864,149.69,149.62,8.22]
[1727249482843,8.22,149.67,149.62,8.22]
[1727249483743,3.3409,149.65,149.62,8.22]
[1727249485448,3.3408,149.66,149.62,8.22]
[1727249488053,8.22,149.64,149.56,63.69699487]
[1727249488356,8.22,149.63,149.58,8.22]
[1727249488556,8.22,149.61,149.57,11.5627]
[1727249488954,8.22,149.61,149.57,3.3427]
[1727249489155,8.22,149.61,149.56,75.25979487]
[1727249489457,8.22,149.61,149.56,67.03979487]
[1727249489658,8.22,149.61,149.56,75.25979487]
[1727249489959,11.562,149.61,149.56,75.25979487]
[1727249490554,8.22,149.61,149.56,67.03979487]
[1727249490755,8.22,149.63,149.58,8.22]
[1727249491054,11.5616,149.63,149.58,8.22]
[1727249491357,3.3416,149.63,149.6,8.22]
[1727249491761,11.5612,149.64,149.6,8.22]
[1727249491954,3.3412,149.64,149.6,8.22]
[1727249493652,11.5612,149.64,149.6,8.22]
[1727249493859,3.3414,149.63,149.6,8.22]
[1727249494654,3.3414,149.63,149.59,3.3422]
[1727249499065,3.3414,149.63,149.59,11.5622]
[1727249500168,11.5612,149.64,149.59,11.5622]
[1727249500764,1.2894,149.65,149.6,11.562]
[1727249500765,3.341,149.65,149.6,11.562]
[1727249501970,3.341,149.65,149.62,8.22]
[1727249513681,8.22,149.64,149.56,63.69699487]
[1727249513974,8.22,149.64,149.59,8.22]
[1727249514579,3.3414,149.63,149.59,8.22]
[1727249515282,3.3416,149.62,149.59,8.22]
[1727249515475,8.22,149.62,149.57,11.5626]
[1727249515677,8.22,149.62,149.57,8.22]
[1727249516073,3.3422,149.6,149.57,8.22]
[1727249516676,3.3423,149.59,149.57,8.22]
[1727249516873,8.22,149.6,149.55,1.3894]
[1727249517076,8.22,149.6,149.55,9.6094]
[1727249517270,3.3427,149.58,149.55,9.6094]
[1727249517481,3.3427,149.58,149.55,1.3894]
[1727249517882,3.3427,149.58,149.54,4.6844]
[1727249518084,3.3427,149.58,149.55,11.5631]
[1727249518375,8.22,149.61,149.56,8.22]
[1727249518582,3.3423,149.59,149.56,8.22]
[1727249519582,3.3427,149.58,149.54,1.3412]
[1727249519879,1.3003,149.64,149.54,1.3412]
[1727249520084,8.22,149.58,149.54,1.3412]
[1727249520276,8.22,149.57,149.52,1.2818]
[1727249520577,8.22,149.57,149.51,80.24]
[1727249520783,8.22,149.57,149.51,88.46]
[1727249521083,11.5633,149.55,149.51,88.46]
[1727249522382,11.5633,149.55,149.51,3.344]
[1727249522582,8.22,149.54,149.49,1.364]
[1727249522891,8.22,149.53,149.49,9.584]
[1727249523091,20.05,149.6,149.42,88.55157194]
[1727249523387,2.44535938,149.59,149.43,7.08528936]
[1727249523586,8.22,149.47,149.42,91.806]
[1727249524374,11.565,149.47,149.42,91.806]
[1727249524572,8.22,149.46,149.42,11.566]
[1727249524772,8.22,149.46,149.41,1.3508]
[1727249524974,8.22,149.45,149.41,1.3508]
[1727249525182,13.66281493,149.55,149.39,1.4053]
[1727249525183,33.71281493,149.55,149.39,1.4053]
[1727249525388,98.0027413,149.56,149.39,1.4053]
[1727249525389,8.22,149.43,149.39,1.4053]
[1727249526280,8.22,149.43,149.39,4.752]
[1727249526876,8.22,149.47,149.41,8.22]
[1727249527582,1.4033,149.52,149.41,8.22]
[1727249527890,11.5652,149.46,149.41,11.5661]
[1727249529390,11.5652,149.46,149.42,3.346]
[1727249530391,8.22,149.46,149.42,3.346]
[1727249530591,8.22,149.51,149.45,8.22]
[1727249531190,3.3445,149.5,149.45,8.22]
[1727249531394,1.4033,149.52,149.45,8.22]
[1727249531588,8.22,149.51,149.46,11.565]
[1727249531896,8.22,149.52,149.48,8.22]
[1727249533892,11.5639,149.52,149.48,8.22]
[1727249534291,3.3434,149.54,149.49,11.5644]
[1727249534598,11.5634,149.54,149.49,11.5644]
[1727249537000,8.22,149.54,149.49,8.22]
[1727249538814,3.3437,149.53,149.49,8.22]
[1727249544617,3.3437,149.53,149.49,3.3444]
[1727249545614,106.2227413,149.56,149.49,8.22]
[1727249546020,106.2227413,149.56,149.41,1.3532]
[1727249546021,106.2227413,149.56,149.51,8.22]
[1727249546319,3.3432,149.55,149.51,8.22]
[1727249548921,98.0027413,149.56,149.53,8.22]
[1727249549128,2.6885,149.63,149.54,8.22]
[1727249549321,8.22,149.6,149.56,8.22]
[1727249549617,8.22,149.61,149.56,8.22]
[1727249550214,3.3424,149.59,149.56,8.22]
[1727249550522,8.22,149.6,149.55,8.22]
[1727249550823,3.3425,149.58,149.55,8.22]
[1727249551416,3.3423,149.59,149.55,8.22]
[1727249552522,3.3426,149.58,149.55,8.22]
[1727249553022,8.22,149.58,149.53,8.22]
[1727249553815,3.3427,149.57,149.53,8.22]
[1727249554017,8.22,149.57,149.52,8.22]
[1727249554621,3.3431,149.56,149.52,8.22]
[1727249555024,8.22,149.57,149.52,8.22]
[1727249555414,3.3432,149.55,149.52,8.22]
[1727249557021,3.3434,149.54,149.52,8.22]
[1727249557728,3.3432,149.55,149.52,8.22]
[1727249558527,3.343,149.56,149.53,8.22]
[1727249558716,8.22,149.59,149.53,8.22]
[1727249559323,3.3425,149.58,149.55,8.22]
[1727249559928,3.3423,149.59,149.56,8.22]
[1727249560123,20.05,149.69,149.58,8.22]
[1727249560429,8.22,149.63,149.58,8.22]
[1727249563424,3.342,149.61,149.58,8.22]
[1727249564825,3.3416,149.62,149.59,8.22]
[1727249566323,11.5616,149.62,149.57,11.5626]
[1727249566724,3.3418,149.61,149.56,3.3428]
[1727249566924,8.22,149.61,149.56,11.5628]
[1727249567329,11.5619,149.61,149.56,11.5628]
[1727249567529,11.5619,149.61,149.56,8.22]
[1727249567530,8.22,149.61,149.56,8.22]
[1727249567926,3.3422,149.6,149.56,8.22]
[1727249569143,8.22,149.6,149.56,8.22]
[1727249569335,8.22,149.59,149.54,8.22]
[1727249569737,3.3428,149.57,149.54,8.22]
[1727249569942,8.22,149.59,149.54,8.22]
[1727249570741,3.3429,149.57,149.54,8.22]
[1727249571343,3.3429,149.57,149.54,11.5634]
[1727249572543,3.343,149.56,149.53,8.22]
[1727249572751,8.22,149.58,149.53,8.22]
[1727249572949,3.3432,149.55,149.53,8.22]
[1727249573854,3.343,149.56,149.53,8.22]
[1727249574549,13.62429556,149.66,149.55,8.22]
[1727249574858,8.22,149.61,149.55,8.22]
[1727249575054,8.22,149.62,149.57,8.22]
[1727249577053,4.1017,149.68,149.58,8.22]
[1727249577054,8.22,149.63,149.58,8.22]
[1727249577758,8.22,149.63,149.58,11.5623]
[1727249577759,3.3416,149.62,149.58,11.5623]
[1727249582160,4.1017,149.68,149.6,8.22]
[1727249582466,8.22,149.65,149.6,8.22]
[1727249582976,3.3415,149.63,149.6,8.22]
[1727249588865,3.3417,149.62,149.57,3.3425]
[1727249589065,8.22,149.64,149.58,8.22]
[1727249589365,8.22,149.63,149.57,8.22]
[1727249589563,3.3422,149.6,149.57,8.22]
[1727249590264,3.3423,149.59,149.57,8.22]
[1727249590462,3.3423,149.59,149.54,3.3431]
[1727249590463,8.22,149.61,149.55,8.22]
[1727249590763,3.3421,149.6,149.55,11.563]
[1727249593166,8.22,149.6,149.54,8.22]
[1727249593367,8.22,149.59,149.53,1.3546]
[1727249593576,8.22,149.59,149.53,9.5746]
[1727249593776,3.3429,149.56,149.53,1.3546]
[1727249594076,3.3429,149.56,149.53,9.5746]
[1727249594269,3.3429,149.56,149.52,9.5974]
[1727249594772,3.3432,149.55,149.52,8.22]
[1727249595163,3.3429,149.56,149.52,8.22]
[1727249597071,8.22,149.56,149.51,1.3493]
[1727249597673,8.22,149.55,149.51,1.3493]
[1727249597968,11.5633,149.55,149.51,1.3493]
[1727249599770,3.3433,149.55,149.51,9.5693]
[1727249599971,3.3433,149.55,149.51,12.9133]
[1727249602475,3.3435,149.54,149.5,3.3442]
[1727249602681,3.3435,149.54,149.5,8.22]
[1727249604581,3.3436,149.53,149.5,8.22]
[1727249609375,3.3436,149.53,149.49,11.5644]
[1727249609581,3.3439,149.52,149.49,11.5644]
[1727249611287,3.3439,149.52,149.48,1.306]
[1727249611288,8.22,149.55,149.5,8.22]
[1727249611488,8.22,149.58,149.52,8.22]
[1727249611987,3.3431,149.56,149.52,8.22]
[1727249612378,3.3431,149.56,149.52,11.5637]
[1727249612585,3.3431,149.56,149.52,8.22]
[1727249612983,3.3431,149.56,149.52,11.5637]
[1727249620893,3.3428,149.57,149.53,3.3436]
[1727249624098,3.3428,149.57,149.53,11.5636]
[1727249624999,97.97245306,149.61,149.55,8.22]
[1727249625300,8.22,149.6,149.55,8.22]
[1727249625593,3.3424,149.59,149.55,11.5631]
[1727249626098,3.3424,149.59,149.55,8.22]
[1727249627695,3.3424,149.59,149.56,8.22]
[1727249628294,3.3421,149.6,149.56,8.22]
[1727249629396,3.3421,149.6,149.56,11.5629]
[1727249630496,3.3423,149.59,149.56,8.22]
[1727249630705,3.3423,149.59,149.55,11.5631]
[1727249631496,3.3423,149.59,149.55,8.22]
[1727249632400,3.3427,149.57,149.53,3.3436]
[1727249632599,3.3427,149.57,149.54,8.22]
[1727249632797,8.22,149.58,149.54,8.22]
[1727249633000,8.22,149.6,149.55,8.22]
[1727249633602,8.22,149.6,149.54,8.22]
[1727249634103,3.3426,149.58,149.54,8.22]
[1727249636503,3.3426,149.58,149.55,8.22]
[1727249637109,106.19245306,149.61,149.55,11.563]
[1727249637110,3.3423,149.59,149.55,11.563]
[1727249642605,106.19245306,149.61,149.55,8.22]
[1727249643307,3.3425,149.58,149.55,8.22]
[1727249645309,3.3423,149.59,149.56,8.22]
[1727249645510,106.19245306,149.61,149.56,8.22]
[1727249646510,3.3422,149.6,149.56,11.5629]
[1727249646907,106.19245306,149.61,149.55,8.22]
[1727249647214,3.3426,149.58,149.55,8.22]
[1727249647715,3.3426,149.58,149.54,3.3433]
[1727249647904,3.3426,149.58,149.54,11.5633]
[1727249648413,8.22,149.6,149.54,8.22]
[1727249649410,8.22,149.6,149.54,11.5633]
[1727249649805,8.22,149.6,149.55,8.22]
[1727249650009,3.3426,149.58,149.55,8.22]
[1727249650811,3.3423,149.59,149.55,11.5631]
[1727249651514,3.3421,149.6,149.57,8.22]
[1727249652614,3.3423,149.59,149.56,8.22]
[1727249661021,3.3423,149.59,149.56,11.5629]
[1727249662524,106.19245306,149.61,149.56,8.22]
[1727249663518,3.3424,149.59,149.56,11.5629]
[1727249663723,106.19245306,149.61,149.56,11.5629]
[1727249663923,97.97245306,149.61,149.57,8.22]
[1727249665222,3.342,149.6,149.57,8.22]
[1727249667022,3.3419,149.61,149.57,8.22]
[1727249667417,3.342,149.6,149.57,8.22]
[1727249667619,3.342,149.6,149.56,11.5628]
[1727249669530,3.342,149.6,149.57,8.22]
[1727249672230,3.342,149.6,149.56,3.3428]
[1727249672529,3.342,149.6,149.57,8.22]
[1727249676831,8.22,149.63,149.57,11.5627]
[1727249677028,8.22,149.63,149.58,8.22]
[1727249677232,3.3418,149.62,149.58,8.22]
[1727249678221,3.3418,149.62,149.58,11.5624]
[1727249679127,3.3419,149.61,149.57,8.22]
[1727249679330,8.22,149.63,149.57,8.22]
[1727249679736,21.89126135,149.63,149.57,8.22]
[1727249679927,8.22,149.63,149.57,8.22]
[1727249681427,3.342,149.61,149.57,8.22]
[1727249681630,3.342,149.61,149.58,8.22]
[1727249682535,3.3421,149.6,149.56,8.22]
[1727249682932,3.3419,149.61,149.58,8.22]
[1727249685735,3.3417,149.62,149.58,11.5625]
[1727249686429,3.3417,149.62,149.58,8.22]
[1727249689043,3.3418,149.61,149.58,8.22]
[1727249692135,3.3417,149.62,149.58,8.22]
[1727249692532,3.3417,149.62,149.57,3.3425]
[1727249692533,13.67522868,149.65,149.61,8.22]
[1727249692743,3.3415,149.63,149.61,8.22]
[1727249694642,3.3416,149.62,149.59,8.22]
[1727249696937,8.22,149.64,149.59,8.22]
[1727249696938,3.3418,149.61,149.59,8.22]
[1727249697140,3.3418,149.61,149.58,8.22]
[1727249697643,8.22,149.64,149.58,8.22]
[1727249698847,3.3419,149.61,149.58,8.22]
[1727249700243,3.3421,149.6,149.56,3.3428]
[1727249700443,8.22,149.62,149.57,6.8690938]
[1727249700635,8.22,149.62,149.56,8.22]
[1727249700636,3.342,149.61,149.56,8.22]
[1727249700842,8.22,149.63,149.58,8.22]
[1727249701040,10.9731,149.65,149.59,8.22]
[1727249701246,3.3417,149.62,149.59,8.22]
[1727249701638,13.68328379,149.64,149.59,8.22]
[1727249701837,3.3415,149.63,149.59,8.22]
[1727249702647,3.3416,149.62,149.59,8.22]
[1727249703148,15.07464561,149.65,149.53,1.3265]
[1727249703451,15.07464561,149.65,149.53,9.5465]
[1727249703452,8.22,149.59,149.53,9.5465]
[1727249703652,8.22,149.6,149.55,8.22]
[1727249704746,3.3428,149.57,149.55,8.22]
[1727249705148,1.3787,149.63,149.56,8.22]
[1727249705348,3.3422,149.6,149.58,8.22]
[1727249707456,3.3424,149.59,149.54,3.3433]
[1727249707651,8.22,149.62,149.56,8.22]
[1727249708555,8.22,149.59,149.54,8.22]
[1727249708953,3.3428,149.57,149.54,8.22]
[1727249709457,21.90323864,149.64,149.56,8.22]
[1727249709659,13.68323864,149.63,149.59,8.22]
[1727249709955,13.68323864,149.62,149.59,8.22]
[1727249710155,8.22,149.64,149.59,8.22]
[1727249710553,8.22,149.64,149.55,3.343]
[1727249710554,8.22,149.61,149.56,8.22]
[1727249710956,3.3421,149.6,149.57,8.22]
[1727249712560,8.22,149.63,149.56,8.22]
[1727249712958,3.3422,149.6,149.56,8.22]
[1727249715770,3.3423,149.59,149.56,8.22]
[1727249715949,8.22,149.61,149.55,8.22]
[1727249716957,8.22,149.59,149.54,8.22]
[1727249717162,3.3429,149.57,149.54,8.22]
[1727249719870,3.3429,149.57,149.55,8.22]
[1727249720564,13.67645194,149.65,149.56,8.22]
[1727249720768,8.22,149.66,149.57,6.87046676]
[1727249721071,8.22,149.65,149.59,8.22]
[1727249721268,3.3417,149.62,149.59,8.22]
[1727249722168,3.3417,149.62,149.57,8.22]
[1727249722468,3.3419,149.61,149.57,8.22]
[1727249723165,3.3416,149.62,149.58,3.3425]
[1727249723367,3.3416,149.62,149.59,8.22]
[1727249723667,8.22,149.64,149.59,8.22]
[1727249724067,21.90040552,149.64,149.59,8.22]
[1727249724373,8.22,149.65,149.6,8.22]
[1727249724767,3.3415,149.63,149.6,8.22]
[1727249726172,3.3412,149.64,149.6,8.22]
[1727249726973,13.68062656,149.66,149.61,8.22]
[1727249727175,9.6342,149.67,149.61,8.22]
[1727249727676,3.341,149.65,149.61,8.22]
[1727249728578,3.3411,149.64,149.61,8.22]
[1727249729475,11.561,149.65,149.61,8.22]
[1727249729971,3.341,149.65,149.61,8.22]
[1727249731964,15.09364618,149.67,149.63,8.22]
[1727249732169,1.3187,149.68,149.65,8.22]
[1727249732575,4.6592,149.68,149.65,8.22]
[1727249735371,3.3401,149.69,149.66,8.22]
[1727249735574,9.5634,149.71,149.66,8.22]
[1727249736676,3.3401,149.69,149.66,8.22]
[1727249738677,3.3396,149.71,149.67,8.22]
[1727249738883,3.3396,149.71,149.68,8.22]
[1727249739984,3.3398,149.7,149.66,3.3406]
[1727249740283,3.3398,149.7,149.66,8.22]
[1727249740688,8.22,149.71,149.65,8.22]
[1727249741589,3.3402,149.69,149.65,8.22]
[1727249742482,3.3402,149.69,149.64,3.341]
[1727249742675,3.3402,149.69,149.65,8.22]
[1727249744289,3.3402,149.68,149.65,8.22]
[1727249752693,3.3401,149.69,149.66,8.22]
[1727249753687,3.3398,149.7,149.68,8.22]
[1727249754585,3.3396,149.71,149.68,8.22]
[1727249757484,8.22,149.72,149.65,3.3408]
[1727249757485,3.3398,149.7,149.65,3.3408]
[1727249757689,3.3398,149.7,149.66,8.22]
[1727249759488,3.3398,149.7,149.66,11.5605]
[1727249761482,99.17321785,149.75,149.69,8.22]
[1727249761686,1.02704993,149.74,149.69,8.22]
[1727249761901,9.24704993,149.74,149.64,1.3314]
[1727249762095,3.3397,149.71,149.68,8.22]
[1727249762998,3.3398,149.7,149.68,8.22]
[1727249763193,8.22,149.74,149.68,8.22]
[1727249763399,8.22,149.74,149.67,8.22]
[1727249763798,8.22,149.72,149.67,8.22]
[1727249764498,3.3399,149.7,149.67,8.22]
[1727249766496,8.22,149.71,149.66,8.22]
[1727249767100,3.3401,149.69,149.66,8.22]
[1727249768704,3.3402,149.68,149.66,8.22]
[1727249770103,8.22,149.71,149.66,8.22]
[1727249770799,3.3406,149.67,149.64,9.5514]
[1727249772212,3.3406,149.67,149.64,12.8925]
[1727249775610,3.3403,149.68,149.65,3.3409]
[1727249775810,3.3403,149.68,149.66,8.22]
[1727249777413,3.3405,149.67,149.64,4.6725]
[1727249777711,3.3405,149.67,149.64,12.8925]
[1727249778717,3.3405,149.67,149.66,8.22]
[1727249779415,3.3403,149.68,149.66,8.22]
[1727249782418,3.3405,149.67,149.65,8.22]
[1727249782612,3.3405,149.67,149.64,12.8925]
[1727249783714,6.6784,149.73,149.56,80.2]
[1727249783915,8.22,149.65,149.59,71.8995393]
[1727249784219,3.3413,149.64,149.61,3.3418]
[1727249784716,3.3414,149.63,149.6,11.562]
[1727249785711,3.3414,149.63,149.59,63.6795393]
[1727249785712,8.22,149.65,149.59,63.6795393]
[1727249785911,8.22,149.63,149.59,63.6795393]
[1727249786313,3.3416,149.62,149.59,63.6795393]
[1727249791723,3.3412,149.64,149.6,8.22]
[1727249792319,3.3412,149.64,149.61,3.3417]
[1727249794622,3.341,149.65,149.61,3.3417]
[1727249797525,11.561,149.65,149.61,3.3417]
[1727249798928,8.22,149.63,149.6,3.342]
[1727249799531,11.5615,149.63,149.58,8.22]
[1727249800223,11.5615,149.63,149.6,3.342]
[1727249800830,3.3416,149.62,149.59,3.3422]
[1727249802627,11.5614,149.63,149.6,3.3419]
[1727249803730,3.3416,149.62,149.59,3.3422]
[1727249804129,8.22,149.63,149.59,3.3422]
[1727249804735,3.3417,149.62,149.59,3.3422]
[1727249805731,11.5617,149.62,149.59,3.3422]
[1727249806530,3.3417,149.62,149.59,3.3422]
[1727249807531,3.3418,149.61,149.58,3.3423]
[1727249808232,3.3417,149.62,149.59,3.3422]
[1727249814742,3.3418,149.61,149.58,3.3423]
[1727249815342,11.5621,149.6,149.57,3.3426]
[1727249818544,11.5621,149.6,149.58,3.3425]
[1727249819347,15.04601285,149.68,149.58,3.3425]
[1727249819348,3.3419,149.61,149.58,3.3425]
[1727249819742,11.5619,149.61,149.58,3.3425]
[1727249820936,3.342,149.6,149.57,3.3427]
[1727249821140,8.22,149.6,149.57,3.3427]
[1727249821337,8.22,149.6,149.55,8.22]
[1727249821544,8.22,149.6,149.56,3.3428]
[1727249821545,3.3423,149.59,149.56,3.3428]
[1727249821946,11.5621,149.6,149.57,3.3427]
[1727249824438,13.6388642,149.67,149.58,3.3425]
[1727249824644,1.02554714,149.66,149.59,8.22]
[1727249824844,8.22,149.66,149.61,8.22]
[1727249825051,8.22,149.66,149.61,11.5616]
[1727249825744,3.341,149.65,149.61,11.5616]
[1727249827046,1.389,149.68,149.63,8.22]
[1727249827355,8.22,149.68,149.63,8.22]
[1727249828750,3.3406,149.67,149.63,11.5612]
[1727249828951,11.5606,149.67,149.63,11.5612]
[1727249834549,3.3403,149.68,149.64,11.5611]
[1727249835452,10.9845,149.69,149.65,3.3408]
[1727249835453,4.6853,149.69,149.65,3.3408]
[1727249835658,4.6853,149.69,149.66,8.22]
[1727249835659,3.3401,149.69,149.66,8.22]
[1727249836950,11.5601,149.69,149.65,3.3408]
[1727249837145,3.3403,149.68,149.65,3.3408]
[1727249846957,11.5605,149.67,149.59,17.81718358]
[1727249847160,8.22,149.67,149.62,8.22]
[1727249847367,3.3408,149.66,149.63,3.3412]
[1727249847663,8.22,149.66,149.62,8.22]
[1727249848260,3.3411,149.65,149.62,11.5615]
[1727249849061,4.6617,149.69,149.64,8.22]
[1727249849263,4.6617,149.69,149.66,8.22]
[1727249849264,1.3215,149.69,149.66,8.22]
[1727249849465,1.3215,149.69,149.65,8.22]
[1727249851468,9.5415,149.69,149.64,3.341]
[1727249851667,9.5415,149.69,149.64,11.561]
[1727249852756,3.3403,149.68,149.64,11.561]
[1727249855172,8.22,149.67,149.64,3.341]
[1727249857365,11.5603,149.68,149.64,3.341]
[1727249857562,11.5603,149.68,149.64,11.561]
[1727249857765,3.3403,149.68,149.65,11.5609]
[1727249858368,4.6616,149.69,149.65,11.5609]
[1727249860266,8.22,149.73,149.68,8.22]
[1727249860665,8.22,149.72,149.67,8.22]
[1727249860870,8.22,149.71,149.63,2.677]
[1727249861066,8.22,149.71,149.65,8.22]
[1727249861772,8.22,149.71,149.66,8.22]
[1727249862668,3.3398,149.7,149.66,11.5605]
[1727249863271,3.3398,149.7,149.67,3.3405]
[1727249865968,3.3398,149.7,149.66,11.5606]
[1727249867471,3.34,149.69,149.66,11.5606]
[1727249868971,3.3404,149.68,149.65,3.3408]
[1727249869171,8.22,149.71,149.65,11.5608]
[1727249870078,3.3402,149.69,149.65,11.5608]
[1727249870268,8.22,149.71,149.65,11.5608]
[1727249870469,3.3402,149.69,149.65,11.5608]
[1727249870675,8.22,149.71,149.65,11.5608]
[1727249871272,3.3402,149.69,149.65,11.5608]
[1727249872080,8.22,149.71,149.65,11.5608]
[1727249872081,3.3403,149.68,149.65,11.5608]
[1727249875476,3.3401,149.69,149.66,3.3407]
[1727249875683,2.6592,149.74,149.66,8.22]
[1727249875884,8.22,149.72,149.66,8.22]
[1727249876883,3.3398,149.7,149.67,3.3403]
[1727249880887,3.3398,149.7,149.63,2.677]
[1727249880888,3.3397,149.71,149.68,11.5601]
[1727249882988,3.3394,149.72,149.69,3.3399]
[1727249884486,3.3394,149.72,149.68,11.5601]
[1727249885786,1.4182,149.76,149.69,8.22]
[1727249885988,106.09326427,149.75,149.69,8.22]
[1727249886885,3.3391,149.74,149.7,3.3397]
[1727249891793,3.3391,149.74,149.7,11.5597]
[1727249891989,3.3391,149.74,149.66,1.3941]
[1727249891990,1.3287,149.79,149.73,8.22]
[1727249892196,9.5487,149.79,149.73,8.22]
[1727249892695,3.3384,149.77,149.73,11.5591]
[1727249894593,3.3385,149.76,149.72,3.3392]
[1727249894891,8.22,149.75,149.7,8.22]
[1727249895397,8.22,149.75,149.7,11.5597]
[1727249895898,3.339,149.74,149.7,11.5597]
[1727249896492,3.339,149.74,149.71,11.5596]
[1727249901305,3.3387,149.75,149.72,3.3392]
[1727249901596,8.22,149.76,149.71,8.22]
[1727249902201,8.22,149.77,149.68,2.7437]
[1727249902390,8.22,149.77,149.73,8.22]
[1727249902904,13.66809435,149.79,149.75,8.22]
[1727249903103,8.22,149.81,149.75,8.22]
[1727249903593,2.6848,149.84,149.75,8.22]
[1727249903797,8.22,149.82,149.77,8.22]
[1727249903994,4.36427422,149.8,149.77,8.22]
[1727249904608,1.02667422,149.8,149.77,8.22]
[1727249904900,8.22,149.81,149.77,8.22]
[1727249905097,8.22,149.81,149.75,11.5585]
[1727249905797,3.3379,149.79,149.75,3.3385]
[1727249906005,16.35411703,149.84,149.76,3.3384]
[1727249906204,16.35411703,149.84,149.68,2.7437]
[1727249906205,9.24663204,149.83,149.78,8.22]
[1727249906398,3.3375,149.81,149.78,8.22]
[1727249914308,3.3376,149.8,149.77,11.5582]
[1727249914611,8.22,149.83,149.78,8.22]
[1727249914908,9.6267,149.84,149.78,8.22]
[1727249915108,1.02660681,149.83,149.78,8.22]
[1727249915298,3.3374,149.81,149.78,8.22]
[1727249916000,3.3374,149.81,149.78,11.5579]
[1727249917011,3.3374,149.81,149.78,8.22]
[1727249918406,1.3796,149.89,149.8,8.22]
[1727249918710,1.0266503,149.86,149.82,8.22]
[1727249918906,3.3368,149.84,149.82,8.22]
[1727249919105,20.07,149.94,149.82,8.22]
[1727249919303,14.66117439,149.93,149.83,8.22]
[1727249919505,3.3362,149.87,149.83,8.22]
[1727249920002,3.3362,149.87,149.83,11.5568]
[1727249920210,8.22,149.89,149.83,8.22]
[1727249920404,1.0268999,149.88,149.83,8.22]
[1727249921812,3.3363,149.86,149.83,8.22]
[1727249922009,13.62870968,149.93,149.85,8.22]
[1727249922209,8.22,149.91,149.85,8.22]
[1727249922408,3.3361,149.87,149.79,63.59682603]
[1727249922712,8.22,149.9,149.85,8.22]
[1727249922914,1.0269484,149.89,149.85,8.22]